[Event "Early-Titled-Tuesday-Blitz-May-28-2024"]
[Site "Chess.com"]
[Date "2024.05.28"]
[Round "10"]
[White "Barmen_EV"]
[Black "frenchpin"]
[Result "1-0"]
[WhiteElo "2542"]
[BlackElo "2385"]
[TimeControl "180+1"]
[EndTime "9:56:32 PDT"]
[Termination "Barmen_EV won by resignation"]

1. e4 {[%clk 0:03:00.9]} 1... e5 {[%clk 0:02:59.7]} 2. Nf3 {[%clk 0:03:00.7]}
2... Nf6 {[%clk 0:02:59.6]} 3. Nc3 {[%clk 0:03:00.4]} 3... Nc6 {[%clk
0:02:55.9]} 4. Bb5 {[%clk 0:03:00.6]} 4... Bd6 {[%clk 0:02:49.8]} 5. O-O {[%clk
0:02:59.9]} 5... O-O {[%clk 0:02:48.6]} 6. Bxc6 {[%clk 0:03:00.2]} 6... dxc6
{[%clk 0:02:46]} 7. d3 {[%clk 0:03:00.2]} 7... Bg4 {[%clk 0:02:42.9]} 8. h3
{[%clk 0:03:00.3]} 8... Bh5 {[%clk 0:02:43]} 9. Kh2 {[%clk 0:03:00.6]} 9... h6
{[%clk 0:02:37.4]} 10. g4 {[%clk 0:02:59]} 10... Bg6 {[%clk 0:02:36.4]} 11. Ne2
{[%clk 0:02:58.8]} 11... Nh7 {[%clk 0:02:26.6]} 12. Ng3 {[%clk 0:02:55.8]} 12...
Ng5 {[%clk 0:02:26.3]} 13. Bxg5 {[%clk 0:02:39.1]} 13... hxg5 {[%clk 0:02:27.2]}
14. Nf5 {[%clk 0:02:39.6]} 14... Re8 {[%clk 0:02:08.4]} 15. Kg2 {[%clk
0:02:36.8]} 15... Bf8 {[%clk 0:01:53.7]} 16. Rh1 {[%clk 0:02:34.1]} 16... Bxf5
{[%clk 0:01:07.7]} 17. gxf5 {[%clk 0:02:35]} 17... Qf6 {[%clk 0:01:07.7]} 18.
Nh2 {[%clk 0:02:32.9]} 18... Qh6 {[%clk 0:01:05.6]} 19. Ng4 {[%clk 0:02:19.6]}
19... Qh4 {[%clk 0:01:04.5]} 20. Qf3 {[%clk 0:02:17.3]} 20... f6 {[%clk
0:01:02.9]} 21. Qg3 {[%clk 0:02:14.5]} 21... Qxg3+ {[%clk 0:00:53.7]} 22. fxg3
{[%clk 0:02:15.4]} 22... Kf7 {[%clk 0:00:52.6]} 23. h4 {[%clk 0:02:15.7]} 23...
gxh4 {[%clk 0:00:52.2]} 24. Rxh4 {[%clk 0:02:11.1]} 24... Bc5 {[%clk 0:00:52.1]}
25. Rah1 {[%clk 0:02:10.7]} 25... Rg8 {[%clk 0:00:46.7]} 26. Rh7 {[%clk
0:02:10.3]} 26... Ke7 {[%clk 0:00:30.7]} 27. Nh6 {[%clk 0:02:06.6]} 27... Rgf8
{[%clk 0:00:12.9]} 28. Rxg7+ {[%clk 0:02:06.6]} 28... Kd8 {[%clk 0:00:13.5]} 29.
Nf7+ {[%clk 0:02:00.5]} 29... Kc8 {[%clk 0:00:13.3]} 30. Rhh7 {[%clk 0:02:00.2]}
30... Bb6 {[%clk 0:00:11.3]} 31. g4 {[%clk 0:01:55]} 31... a5 {[%clk 0:00:10.8]}
32. a4 {[%clk 0:01:53.9]} 32... Kb8 {[%clk 0:00:10.2]} 33. g5 {[%clk 0:01:54.1]}
33... fxg5 {[%clk 0:00:09.8]} 34. Nxg5 {[%clk 0:01:55]} 34... Ka7 {[%clk
0:00:08.8]} 35. Ne6 {[%clk 0:01:55.6]} 35... Rg8 {[%clk 0:00:08.9]} 36. f6
{[%clk 0:01:55.5]} 36... Rae8 {[%clk 0:00:04.8]} 37. f7 {[%clk 0:01:53.8]} 37...
Rxg7+ {[%clk 0:00:03.1]} 38. Rxg7 {[%clk 0:01:54.7]} 38... Rxe6 {[%clk
0:00:02.5]} 39. f8=Q {[%clk 0:01:54.9]} 39... Rg6+ {[%clk 0:00:03.1]} 40. Rxg6
{[%clk 0:01:55.2]} 1-0

[Event "Early-Titled-Tuesday-Blitz-May-28-2024"]
[Site "Chess.com"]
[Date "2024.05.28"]
[Round "10"]
[White "ChessSwole"]
[Black "VacheH009"]
[Result "1-0"]
[WhiteElo "2695"]
[BlackElo "2550"]
[TimeControl "180+1"]
[EndTime "9:56:33 PDT"]
[Termination "ChessSwole won by checkmate"]

1. Nf3 {[%clk 0:03:00]} 1... Nf6 {[%clk 0:02:59]} 2. g3 {[%clk 0:02:59.6]} 2...
e6 {[%clk 0:02:58.3]} 3. Bg2 {[%clk 0:02:59.4]} 3... d5 {[%clk 0:02:58.6]} 4.
O-O {[%clk 0:02:59]} 4... Be7 {[%clk 0:02:58.7]} 5. c4 {[%clk 0:02:59.6]} 5...
O-O {[%clk 0:02:58.1]} 6. d4 {[%clk 0:02:58.2]} 6... dxc4 {[%clk 0:02:57.4]} 7.
Qc2 {[%clk 0:02:57.2]} 7... a6 {[%clk 0:02:55.3]} 8. a4 {[%clk 0:02:57.3]} 8...
Bd7 {[%clk 0:02:55.8]} 9. Rd1 {[%clk 0:02:55.8]} 9... Bc6 {[%clk 0:02:54.5]} 10.
Nc3 {[%clk 0:02:55.7]} 10... Bxf3 {[%clk 0:02:50.2]} 11. Bxf3 {[%clk 0:02:56.6]}
11... Nc6 {[%clk 0:02:50.5]} 12. Bxc6 {[%clk 0:02:55.6]} 12... bxc6 {[%clk
0:02:50.3]} 13. a5 {[%clk 0:02:56.3]} 13... Bb4 {[%clk 0:02:18.2]} 14. Ra4
{[%clk 0:02:53.2]} 14... Bxc3 {[%clk 0:01:41.2]} 15. Qxc3 {[%clk 0:02:54.1]}
15... Qd5 {[%clk 0:01:33.5]} 16. Rxc4 {[%clk 0:02:48.3]} 16... Rab8 {[%clk
0:01:22.4]} 17. f3 {[%clk 0:02:35.8]} 17... Rfd8 {[%clk 0:00:50.9]} 18. Bf4
{[%clk 0:02:22.3]} 18... Qb5 {[%clk 0:00:47.4]} 19. e4 {[%clk 0:02:15.1]} 19...
Rd7 {[%clk 0:00:32.7]} 20. Rd2 {[%clk 0:02:01.8]} 20... Ne8 {[%clk 0:00:13.5]}
21. Rxc6 {[%clk 0:01:52.2]} 21... Qa4 {[%clk 0:00:13.9]} 22. Rc4 {[%clk
0:01:41.5]} 22... Qa1+ {[%clk 0:00:12.6]} 23. Kg2 {[%clk 0:01:38.1]} 23... f6
{[%clk 0:00:10.3]} 24. Rc6 {[%clk 0:01:32.2]} 24... e5 {[%clk 0:00:07.6]} 25.
Be3 {[%clk 0:01:26.3]} 25... exd4 {[%clk 0:00:07.6]} 26. Bxd4 {[%clk 0:01:27]}
26... Kh8 {[%clk 0:00:02.8]} 27. Qc5 {[%clk 0:01:21.5]} 27... Qa4 {[%clk
0:00:01.7]} 28. Qf8# {[%clk 0:01:21.1]} 1-0

[Event "Early-Titled-Tuesday-Blitz-May-28-2024"]
[Site "Chess.com"]
[Date "2024.05.28"]
[Round "10"]
[White "gabduschew"]
[Black "LileKoridze"]
[Result "1-0"]
[WhiteElo "2328"]
[BlackElo "2428"]
[TimeControl "180+1"]
[EndTime "9:56:42 PDT"]
[Termination "gabduschew won by checkmate"]

1. e4 {[%clk 0:02:54.8]} 1... b5 {[%clk 0:02:59.7]} 2. Bxb5 {[%clk 0:02:44.7]}
2... Bb7 {[%clk 0:02:57.9]} 3. d3 {[%clk 0:02:43.7]} 3... e6 {[%clk 0:02:55.4]}
4. Nf3 {[%clk 0:02:42.3]} 4... Bc5 {[%clk 0:02:54.9]} 5. c3 {[%clk 0:02:38.7]}
5... Nf6 {[%clk 0:02:54.4]} 6. O-O {[%clk 0:02:34.5]} 6... O-O {[%clk
0:02:49.9]} 7. d4 {[%clk 0:02:33.4]} 7... Bb6 {[%clk 0:02:50]} 8. e5 {[%clk
0:02:30]} 8... Nd5 {[%clk 0:02:48.4]} 9. c4 {[%clk 0:02:29.9]} 9... Ne7 {[%clk
0:02:47.7]} 10. c5 {[%clk 0:02:26.9]} 10... Ba5 {[%clk 0:02:48.1]} 11. a3 {[%clk
0:02:24.1]} 11... c6 {[%clk 0:02:45.8]} 12. Bd3 {[%clk 0:02:23]} 12... Ba6
{[%clk 0:02:45.7]} 13. Bxa6 {[%clk 0:02:05.9]} 13... Nxa6 {[%clk 0:02:44.8]} 14.
b4 {[%clk 0:02:06.8]} 14... Bc7 {[%clk 0:02:44.1]} 15. Qd3 {[%clk 0:02:07.4]}
15... Nb8 {[%clk 0:02:43.6]} 16. Nc3 {[%clk 0:02:02.1]} 16... a5 {[%clk
0:02:43.1]} 17. Bg5 {[%clk 0:01:53.1]} 17... h6 {[%clk 0:02:41]} 18. Bh4 {[%clk
0:01:52.6]} 18... Qe8 {[%clk 0:02:29.2]} 19. Bxe7 {[%clk 0:01:45.4]} 19... Qxe7
{[%clk 0:02:29.1]} 20. b5 {[%clk 0:01:41.5]} 20... cxb5 {[%clk 0:02:28.5]} 21.
Nxb5 {[%clk 0:01:41.4]} 21... Bd8 {[%clk 0:02:29]} 22. a4 {[%clk 0:01:38.3]}
22... Nc6 {[%clk 0:02:29.1]} 23. Nd6 {[%clk 0:01:08.6]} 23... f5 {[%clk
0:02:22.7]} 24. Rab1 {[%clk 0:01:02.1]} 24... Nb4 {[%clk 0:02:21.9]} 25. Qc4
{[%clk 0:00:58.6]} 25... Bc7 {[%clk 0:02:21]} 26. Nb5 {[%clk 0:00:57.5]} 26...
Bd8 {[%clk 0:02:16.6]} 27. Rfd1 {[%clk 0:00:55.6]} 27... g5 {[%clk 0:02:14.3]}
28. Ne1 {[%clk 0:00:50.9]} 28... g4 {[%clk 0:02:11.8]} 29. Nd3 {[%clk
0:00:50.1]} 29... Nd5 {[%clk 0:02:10.9]} 30. Nc3 {[%clk 0:00:46]} 30... Nc7
{[%clk 0:01:59.1]} 31. Rb7 {[%clk 0:00:45.2]} 31... f4 {[%clk 0:01:57.4]} 32. d5
{[%clk 0:00:40.8]} 32... exd5 {[%clk 0:01:56.5]} 33. Nxd5 {[%clk 0:00:40.8]}
33... Qf7 {[%clk 0:01:54.8]} 34. N3xf4 {[%clk 0:00:29.8]} 34... Ne6 {[%clk
0:01:51.5]} 35. Nxe6 {[%clk 0:00:12.9]} 35... Qxf2+ {[%clk 0:01:50.7]} 36. Kh1
{[%clk 0:00:12.1]} 36... dxe6 {[%clk 0:01:50.5]} 37. Qxg4+ {[%clk 0:00:06.9]}
37... Bg5 {[%clk 0:01:50.7]} 38. h4 {[%clk 0:00:06.4]} 38... exd5 {[%clk
0:01:38.9]} 39. hxg5 {[%clk 0:00:05.7]} 39... Rf4 {[%clk 0:01:38.9]} 40. Qe6+
{[%clk 0:00:05]} 40... Kh8 {[%clk 0:01:39.3]} 41. Qxh6+ {[%clk 0:00:05.3]} 41...
Kg8 {[%clk 0:01:39.2]} 42. Qg7# {[%clk 0:00:06.2]} 1-0

[Event "Early-Titled-Tuesday-Blitz-May-28-2024"]
[Site "Chess.com"]
[Date "2024.05.28"]
[Round "10"]
[White "NikitaShnadrygin"]
[Black "rollercoaster29"]
[Result "1-0"]
[WhiteElo "2765"]
[BlackElo "2540"]
[TimeControl "180+1"]
[EndTime "9:56:46 PDT"]
[Termination "NikitaShnadrygin won by checkmate"]

1. e4 {[%clk 0:03:00.9]} 1... e5 {[%clk 0:02:59.7]} 2. Nf3 {[%clk 0:02:57.8]}
2... Nc6 {[%clk 0:02:59.3]} 3. c3 {[%clk 0:02:57.4]} 3... d5 {[%clk 0:02:55.6]}
4. Qa4 {[%clk 0:02:55.5]} 4... dxe4 {[%clk 0:02:53.7]} 5. Nxe5 {[%clk
0:02:54.8]} 5... Bd7 {[%clk 0:02:27.6]} 6. Nxd7 {[%clk 0:02:53.8]} 6... Qxd7
{[%clk 0:02:26.1]} 7. Qxe4+ {[%clk 0:02:54.2]} 7... Be7 {[%clk 0:02:26.4]} 8. d4
{[%clk 0:02:53.1]} 8... Nf6 {[%clk 0:02:26.3]} 9. Qf3 {[%clk 0:02:53.5]} 9...
O-O {[%clk 0:02:26.2]} 10. Be3 {[%clk 0:02:53.7]} 10... Rfe8 {[%clk 0:02:19.2]}
11. Nd2 {[%clk 0:02:53.3]} 11... Nd5 {[%clk 0:02:16.6]} 12. Bc4 {[%clk 0:02:50]}
12... Nxe3 {[%clk 0:01:23.9]} 13. fxe3 {[%clk 0:02:48.3]} 13... Bg5 {[%clk
0:01:19.6]} 14. e4 {[%clk 0:01:50.8]} 14... Bxd2+ {[%clk 0:01:07.5]} 15. Kxd2
{[%clk 0:01:49.9]} 15... Ne5 {[%clk 0:01:03.1]} 16. Qe2 {[%clk 0:01:50.1]} 16...
Nxc4+ {[%clk 0:01:01.4]} 17. Qxc4 {[%clk 0:01:51]} 17... Rxe4 {[%clk 0:01:01.5]}
18. Rae1 {[%clk 0:01:50.6]} 18... Rae8 {[%clk 0:00:59.1]} 19. Rxe4 {[%clk
0:01:50]} 19... Rxe4 {[%clk 0:01:00]} 20. Re1 {[%clk 0:01:50.4]} 20... Rxe1
{[%clk 0:00:30.9]} 21. Kxe1 {[%clk 0:01:51.3]} 21... g6 {[%clk 0:00:26.7]} 22.
Qc5 {[%clk 0:01:51.1]} 22... b6 {[%clk 0:00:25]} 23. Qe5 {[%clk 0:01:51]} 23...
Qe6 {[%clk 0:00:12.3]} 24. Qxe6 {[%clk 0:01:48.5]} 24... fxe6 {[%clk 0:00:13.2]}
25. Ke2 {[%clk 0:01:49.2]} 25... Kf7 {[%clk 0:00:11.5]} 26. Ke3 {[%clk
0:01:49.7]} 26... Kf6 {[%clk 0:00:12.4]} 27. Ke4 {[%clk 0:01:50.6]} 27... c6
{[%clk 0:00:11.9]} 28. c4 {[%clk 0:01:48.7]} 28... g5 {[%clk 0:00:10.4]} 29. g4
{[%clk 0:01:47.6]} 29... h6 {[%clk 0:00:08.8]} 30. d5 {[%clk 0:01:47]} 30...
exd5+ {[%clk 0:00:04]} 31. cxd5 {[%clk 0:01:47.9]} 31... c5 {[%clk 0:00:02.2]}
32. a4 {[%clk 0:01:48.5]} 32... a6 {[%clk 0:00:01.8]} 33. h3 {[%clk 0:01:48.6]}
33... b5 {[%clk 0:00:01.1]} 34. axb5 {[%clk 0:01:49.5]} 34... axb5 {[%clk
0:00:02]} 35. b3 {[%clk 0:01:50.4]} 35... c4 {[%clk 0:00:02.1]} 36. bxc4 {[%clk
0:01:50.5]} 36... bxc4 {[%clk 0:00:02.7]} 37. Kd4 {[%clk 0:01:51.4]} 37... c3
{[%clk 0:00:01.9]} 38. Kxc3 {[%clk 0:01:51.7]} 38... Ke5 {[%clk 0:00:02.8]} 39.
Kc4 {[%clk 0:01:52.2]} 39... Kf4 {[%clk 0:00:02.2]} 40. d6 {[%clk 0:01:52]}
40... Kg3 {[%clk 0:00:03.1]} 41. d7 {[%clk 0:01:52.9]} 41... Kxh3 {[%clk
0:00:03.6]} 42. d8=Q {[%clk 0:01:53.6]} 42... Kxg4 {[%clk 0:00:04.5]} 43. Kd3
{[%clk 0:01:53.9]} 43... h5 {[%clk 0:00:04]} 44. Ke2 {[%clk 0:01:54.7]} 44...
Kh3 {[%clk 0:00:04.3]} 45. Kf2 {[%clk 0:01:55.1]} 45... g4 {[%clk 0:00:04.7]}
46. Qg5 {[%clk 0:01:55.5]} 46... h4 {[%clk 0:00:04.1]} 47. Kg1 {[%clk
0:01:55.9]} 47... g3 {[%clk 0:00:03.9]} 48. Qf5# {[%clk 0:01:55.9]} 1-0

[Event "Early-Titled-Tuesday-Blitz-May-28-2024"]
[Site "Chess.com"]
[Date "2024.05.28"]
[Round "10"]
[White "MarlonJodar"]
[Black "simaopdias"]
[Result "0-1"]
[WhiteElo "2303"]
[BlackElo "2257"]
[TimeControl "180+1"]
[EndTime "9:56:47 PDT"]
[Termination "simaopdias won on time"]

1. e4 {[%clk 0:03:00.9]} 1... c5 {[%clk 0:02:59.2]} 2. Nf3 {[%clk 0:03:00.5]}
2... g6 {[%clk 0:02:58.5]} 3. d4 {[%clk 0:03:00.8]} 3... cxd4 {[%clk 0:02:59.4]}
4. Nxd4 {[%clk 0:03:01.3]} 4... Bg7 {[%clk 0:02:59.4]} 5. Nc3 {[%clk 0:03:01.9]}
5... Nc6 {[%clk 0:02:59.3]} 6. Be3 {[%clk 0:03:02.6]} 6... Nf6 {[%clk
0:02:59.5]} 7. Bc4 {[%clk 0:03:02.1]} 7... Qa5 {[%clk 0:02:58.8]} 8. O-O {[%clk
0:02:53.9]} 8... O-O {[%clk 0:02:57.8]} 9. Bb3 {[%clk 0:02:49.8]} 9... d6 {[%clk
0:02:57.1]} 10. h3 {[%clk 0:02:45.8]} 10... Bd7 {[%clk 0:02:56.1]} 11. Qd2
{[%clk 0:02:44]} 11... Rfe8 {[%clk 0:02:53.8]} 12. Rad1 {[%clk 0:02:29]} 12...
Nxd4 {[%clk 0:02:53.1]} 13. Bxd4 {[%clk 0:02:28.4]} 13... Bc6 {[%clk 0:02:53.4]}
14. Rfe1 {[%clk 0:02:26.7]} 14... Nd7 {[%clk 0:02:52.8]} 15. Bxg7 {[%clk
0:02:24.3]} 15... Kxg7 {[%clk 0:02:53.7]} 16. f4 {[%clk 0:02:22.5]} 16... Rac8
{[%clk 0:02:46.2]} 17. Kh1 {[%clk 0:01:52.5]} 17... Kg8 {[%clk 0:02:45.8]} 18.
Rf1 {[%clk 0:01:46.5]} 18... Nc5 {[%clk 0:02:43.8]} 19. f5 {[%clk 0:01:41.7]}
19... Nxb3 {[%clk 0:02:43.3]} 20. axb3 {[%clk 0:01:41.4]} 20... b5 {[%clk
0:02:33.3]} 21. f6 {[%clk 0:01:25.6]} 21... b4 {[%clk 0:02:31.5]} 22. Nd5 {[%clk
0:01:08.6]} 22... Bxd5 {[%clk 0:02:30.8]} 23. exd5 {[%clk 0:01:08.8]} 23... exf6
{[%clk 0:02:26.3]} 24. Rxf6 {[%clk 0:01:09.7]} 24... Re5 {[%clk 0:02:15.1]} 25.
Rxd6 {[%clk 0:01:01.4]} 25... Qc5 {[%clk 0:02:10.2]} 26. Rf6 {[%clk 0:00:33.4]}
26... Qxc2 {[%clk 0:02:08.8]} 27. Qxc2 {[%clk 0:00:09.3]} 27... Rxc2 {[%clk
0:02:09.7]} 28. d6 {[%clk 0:00:09.8]} 28... Re8 {[%clk 0:02:03.6]} 29. d7 {[%clk
0:00:09.9]} 29... Rd8 {[%clk 0:02:03]} 30. Ra6 {[%clk 0:00:07.3]} 30... Rc7
{[%clk 0:02:00.7]} 31. Rad6 {[%clk 0:00:06.9]} 31... Kf8 {[%clk 0:02:00.3]} 32.
R6d4 {[%clk 0:00:05.6]} 32... Rb7 {[%clk 0:01:58.8]} 33. Kg1 {[%clk 0:00:05.9]}
33... Ke7 {[%clk 0:01:58.6]} 34. Re1+ {[%clk 0:00:06.5]} 34... Kf8 {[%clk
0:01:58]} 35. Red1 {[%clk 0:00:07.4]} 35... Rb6 {[%clk 0:01:46.4]} 36. Kf2
{[%clk 0:00:06.9]} 36... a5 {[%clk 0:01:46.4]} 37. Rd5 {[%clk 0:00:06.4]} 37...
Ra6 {[%clk 0:01:46]} 38. Ra1 {[%clk 0:00:04.8]} 38... Ke7 {[%clk 0:01:44.8]} 39.
Re1+ {[%clk 0:00:02.1]} 39... Re6 {[%clk 0:01:43.7]} 40. Rxa5 {[%clk 0:00:01]}
40... Rxd7 {[%clk 0:01:41.7]} 0-1

[Event "Early-Titled-Tuesday-Blitz-May-28-2024"]
[Site "Chess.com"]
[Date "2024.05.28"]
[Round "10"]
[White "lachesisQ"]
[Black "francyIM"]
[Result "0-1"]
[WhiteElo "3067"]
[BlackElo "2828"]
[TimeControl "180+1"]
[EndTime "9:56:49 PDT"]
[Termination "francyIM won on time"]

1. e4 {[%clk 0:03:00.9]} 1... e6 {[%clk 0:02:57.1]} 2. d4 {[%clk 0:03:00.8]}
2... d5 {[%clk 0:02:56.7]} 3. Nc3 {[%clk 0:03:01.5]} 3... Nf6 {[%clk 0:02:50.4]}
4. e5 {[%clk 0:03:01.7]} 4... Nfd7 {[%clk 0:02:50.9]} 5. f4 {[%clk 0:03:02.1]}
5... c5 {[%clk 0:02:51.2]} 6. dxc5 {[%clk 0:03:02.5]} 6... Nc6 {[%clk
0:02:48.3]} 7. a3 {[%clk 0:02:57.3]} 7... Bxc5 {[%clk 0:02:46.5]} 8. Qg4 {[%clk
0:02:57]} 8... O-O {[%clk 0:02:44.2]} 9. Bd3 {[%clk 0:02:56.7]} 9... f5 {[%clk
0:02:43.4]} 10. Qh3 {[%clk 0:02:53.3]} 10... Qb6 {[%clk 0:02:39.7]} 11. Nf3
{[%clk 0:02:52.4]} 11... Nd4 {[%clk 0:02:27.9]} 12. Rf1 {[%clk 0:02:21.6]} 12...
Nxf3+ {[%clk 0:02:26.4]} 13. Rxf3 {[%clk 0:02:22.5]} 13... Be7 {[%clk
0:02:21.2]} 14. Qg3 {[%clk 0:01:45.4]} 14... Nc5 {[%clk 0:02:20.4]} 15. Qf2
{[%clk 0:01:43.7]} 15... Ne4 {[%clk 0:02:18.7]} 16. Qxb6 {[%clk 0:01:41.7]}
16... axb6 {[%clk 0:02:19.6]} 17. Nb5 {[%clk 0:01:39.5]} 17... Bd7 {[%clk
0:02:19.4]} 18. Nd4 {[%clk 0:01:39.3]} 18... Nc5 {[%clk 0:02:06]} 19. Bd2 {[%clk
0:01:32.2]} 19... Ra4 {[%clk 0:02:04]} 20. c3 {[%clk 0:01:25.9]} 20... Nxd3+
{[%clk 0:01:58.6]} 21. Rxd3 {[%clk 0:01:26.8]} 21... b5 {[%clk 0:01:58]} 22. Rd1
{[%clk 0:01:24.7]} 22... h6 {[%clk 0:01:54.4]} 23. Be3 {[%clk 0:01:23.1]} 23...
Kh7 {[%clk 0:01:52.6]} 24. h3 {[%clk 0:01:17.3]} 24... g5 {[%clk 0:01:51.4]} 25.
Kf2 {[%clk 0:01:10.4]} 25... Rg8 {[%clk 0:01:49.1]} 26. Rh1 {[%clk 0:01:07.8]}
26... Raa8 {[%clk 0:01:39.6]} 27. g4 {[%clk 0:01:05]} 27... fxg4 {[%clk
0:01:32.2]} 28. hxg4 {[%clk 0:01:05.9]} 28... gxf4 {[%clk 0:01:32.3]} 29. Bxf4
{[%clk 0:01:06]} 29... Raf8 {[%clk 0:01:31.7]} 30. Rf3 {[%clk 0:01:01.6]} 30...
Rg6 {[%clk 0:01:14.4]} 0-1

[Event "Early-Titled-Tuesday-Blitz-May-28-2024"]
[Site "Chess.com"]
[Date "2024.05.28"]
[Round "10"]
[White "Mikhail_Golubev"]
[Black "PeshkaCh"]
[Result "0-1"]
[WhiteElo "2630"]
[BlackElo "2855"]
[TimeControl "180+1"]
[EndTime "9:56:54 PDT"]
[Termination "PeshkaCh won by resignation"]

1. e4 {[%clk 0:03:00.9]} 1... e5 {[%clk 0:03:00.1]} 2. Nf3 {[%clk 0:03:00.8]}
2... Nc6 {[%clk 0:03:00.7]} 3. Bc4 {[%clk 0:03:00.7]} 3... Bc5 {[%clk
0:03:00.6]} 4. c3 {[%clk 0:03:00.6]} 4... Nf6 {[%clk 0:03:01.1]} 5. d3 {[%clk
0:03:01]} 5... d6 {[%clk 0:03:01.4]} 6. Nbd2 {[%clk 0:02:59.4]} 6... a5 {[%clk
0:03:01.5]} 7. O-O {[%clk 0:02:55.9]} 7... h6 {[%clk 0:03:01.9]} 8. Bb5 {[%clk
0:02:51.1]} 8... Bd7 {[%clk 0:02:55.2]} 9. a4 {[%clk 0:02:40.6]} 9... Ba7 {[%clk
0:02:54.5]} 10. Nc4 {[%clk 0:02:35.8]} 10... O-O {[%clk 0:02:49.6]} 11. h3
{[%clk 0:02:26.9]} 11... Ne7 {[%clk 0:02:45.9]} 12. Bxd7 {[%clk 0:02:26.1]}
12... Qxd7 {[%clk 0:02:46.8]} 13. Re1 {[%clk 0:02:23.6]} 13... Ng6 {[%clk
0:02:44.6]} 14. d4 {[%clk 0:02:08.2]} 14... exd4 {[%clk 0:02:41.4]} 15. cxd4
{[%clk 0:02:08.5]} 15... Rfe8 {[%clk 0:02:37.7]} 16. e5 {[%clk 0:01:54.9]} 16...
dxe5 {[%clk 0:02:31.3]} 17. dxe5 {[%clk 0:01:29.1]} 17... Qxd1 {[%clk
0:02:31.6]} 18. Rxd1 {[%clk 0:01:30]} 18... Ne4 {[%clk 0:02:32.4]} 19. Rf1
{[%clk 0:01:23.2]} 19... Rad8 {[%clk 0:02:26.2]} 20. Bd2 {[%clk 0:00:41.5]}
20... Nxd2 {[%clk 0:02:26.1]} 21. Nfxd2 {[%clk 0:00:41.6]} 21... Nxe5 {[%clk
0:02:25.2]} 22. Nxe5 {[%clk 0:00:41.3]} 22... Rxd2 {[%clk 0:01:54.1]} 23. Nc4
{[%clk 0:00:40.9]} 23... Rc2 {[%clk 0:01:51.6]} 24. Rac1 {[%clk 0:00:37]} 24...
Bxf2+ {[%clk 0:01:44.8]} 25. Kh2 {[%clk 0:00:35.4]} 25... Rxc1 {[%clk 0:01:22]}
26. Rxc1 {[%clk 0:00:36.3]} 26... Be1 {[%clk 0:01:22.9]} 27. b3 {[%clk
0:00:33.3]} 27... Bb4 {[%clk 0:01:22.2]} 28. Rd1 {[%clk 0:00:31.4]} 28... c6
{[%clk 0:01:10.1]} 29. Rd7 {[%clk 0:00:22.8]} 29... b5 {[%clk 0:01:01.1]} 30.
axb5 {[%clk 0:00:22.7]} 30... cxb5 {[%clk 0:01:02]} 31. Nb6 {[%clk 0:00:23.1]}
31... Re3 {[%clk 0:00:55.4]} 32. Nd5 {[%clk 0:00:21.2]} 32... Rxb3 {[%clk
0:00:55.5]} 0-1

[Event "Early-Titled-Tuesday-Blitz-May-28-2024"]
[Site "Chess.com"]
[Date "2024.05.28"]
[Round "10"]
[White "RianKapriaga"]
[Black "guillembaches"]
[Result "1/2-1/2"]
[WhiteElo "2334"]
[BlackElo "2496"]
[TimeControl "180+1"]
[EndTime "9:56:54 PDT"]
[Termination "Game drawn by repetition"]

1. d4 {[%clk 0:03:00.9]} 1... d5 {[%clk 0:03:00.2]} 2. Bf4 {[%clk 0:03:00]} 2...
e6 {[%clk 0:03:00.4]} 3. e3 {[%clk 0:03:00.2]} 3... Bd6 {[%clk 0:03:00.6]} 4.
Bg3 {[%clk 0:03:00.4]} 4... Nf6 {[%clk 0:03:00.5]} 5. Nd2 {[%clk 0:03:00.5]}
5... c5 {[%clk 0:03:00.7]} 6. c3 {[%clk 0:02:59.1]} 6... Qc7 {[%clk 0:03:00.8]}
7. Ngf3 {[%clk 0:02:58.9]} 7... Nbd7 {[%clk 0:03:00.4]} 8. Bb5 {[%clk
0:02:50.3]} 8... O-O {[%clk 0:02:56.3]} 9. Bxd7 {[%clk 0:02:33.3]} 9... Nxd7
{[%clk 0:02:53.9]} 10. Bxd6 {[%clk 0:02:30]} 10... Qxd6 {[%clk 0:02:53.8]} 11.
O-O {[%clk 0:02:25.7]} 11... e5 {[%clk 0:02:51.7]} 12. e4 {[%clk 0:02:24.8]}
12... cxd4 {[%clk 0:02:46.7]} 13. cxd4 {[%clk 0:02:23.3]} 13... exd4 {[%clk
0:02:42.7]} 14. Nxd4 {[%clk 0:02:20.1]} 14... Nf6 {[%clk 0:02:32.1]} 15. Re1
{[%clk 0:02:00.7]} 15... Qb6 {[%clk 0:02:17.3]} 16. N4b3 {[%clk 0:01:35.3]}
16... Bg4 {[%clk 0:02:05]} 17. Qb1 {[%clk 0:01:25.7]} 17... dxe4 {[%clk
0:01:48.9]} 18. Nxe4 {[%clk 0:01:24.2]} 18... Bf5 {[%clk 0:01:47.2]} 19. Nxf6+
{[%clk 0:01:22.4]} 19... Qxf6 {[%clk 0:01:48.1]} 20. Qd1 {[%clk 0:01:14.3]}
20... Qxb2 {[%clk 0:01:41]} 21. Qf3 {[%clk 0:01:11.8]} 21... Be6 {[%clk
0:01:24.5]} 22. Qxb7 {[%clk 0:01:06.6]} 22... Rab8 {[%clk 0:01:14.3]} 23. Qxa7
{[%clk 0:01:04.8]} 23... Bxb3 {[%clk 0:01:12.1]} 24. axb3 {[%clk 0:01:02.1]}
24... Qxb3 {[%clk 0:01:10.6]} 25. h4 {[%clk 0:00:59.5]} 25... Qb6 {[%clk
0:01:07.9]} 26. Qxb6 {[%clk 0:00:57.3]} 26... Rxb6 {[%clk 0:01:08]} 27. Ra7
{[%clk 0:00:57.7]} 27... h5 {[%clk 0:01:07.1]} 28. Re5 {[%clk 0:00:53.4]} 28...
g6 {[%clk 0:01:06.2]} 29. Ree7 {[%clk 0:00:49.3]} 29... Kg7 {[%clk 0:01:04.9]}
30. Kh2 {[%clk 0:00:48]} 30... Rb3 {[%clk 0:01:03.8]} 31. f3 {[%clk 0:00:47.1]}
31... Rb4 {[%clk 0:01:02.5]} 32. Kg3 {[%clk 0:00:46.4]} 32... Rc4 {[%clk
0:01:02.7]} 33. Rac7 {[%clk 0:00:46.1]} 33... Rxc7 {[%clk 0:01:02.4]} 34. Rxc7
{[%clk 0:00:47]} 34... Ra8 {[%clk 0:01:02.3]} 35. Kf4 {[%clk 0:00:46.4]} 35...
Ra4+ {[%clk 0:01:02]} 36. Kg3 {[%clk 0:00:46.6]} 36... Ra8 {[%clk 0:01:01.8]}
37. Rb7 {[%clk 0:00:46.3]} 37... Ra4 {[%clk 0:01:01.5]} 38. Rc7 {[%clk
0:00:46.2]} 38... Rb4 {[%clk 0:01:01.4]} 39. Ra7 {[%clk 0:00:45.5]} 39... Rc4
{[%clk 0:01:01.4]} 40. Rb7 {[%clk 0:00:45.5]} 40... Ra4 {[%clk 0:01:01.3]} 41.
Rc7 {[%clk 0:00:45.7]} 1/2-1/2